fUST/lending_fUST_20240919
["ID","MTS","AMOUNT","RATE_DAILY","PERIOD"]
[338599623,1726757456623,500.0,0.00021999,60]
[338599624,1726757456892,500.0,0.00021999,60]
[338599625,1726757457166,282.09,0.00021999,60]
[338599626,1726757460442,500.0,0.00021999,60]
[338599627,1726757460694,500.0,0.00021999,60]
[338599628,1726757463412,500.0,0.00021999,60]
[338599629,1726757463920,500.0,0.00021999,60]
[338599630,1726757464005,393.1,0.00021999,60]
[338599631,1726757470035,500.0,0.00021999,60]
[338599632,1726757470325,500.0,0.00021999,60]
[338599633,1726757470620,500.0,0.00021999,60]
[338599634,1726757470899,252.99,0.00021999,60]
[338599635,1726757471503,500.0,0.00021999,60]
[338599636,1726757471775,500.0,0.00021999,60]
[338599637,1726757472059,500.0,0.00021999,60]
[338599638,1726757472332,500.0,0.00021999,60]
[338599639,1726757472609,282.95,0.00021999,60]
[338599640,1726757474190,500.0,0.00021999,60]
[338599641,1726757474447,500.0,0.00021999,60]
[338599642,1726757474749,500.0,0.00021999,60]
[338599643,1726757475024,550.65,0.00021999,60]
[338599644,1726757479105,500.0,0.00021999,60]
[338599646,1726757501787,500.0,0.00021999,60]
[338599647,1726757502878,500.0,0.00021999,60]
[338599648,1726757503196,326.68,0.00021999,60]
[338599649,1726757503566,500.0,0.00021999,60]
[338599650,1726757503846,500.0,0.00021999,60]
[338599651,1726757532152,500.0,0.00021999,60]
[338599652,1726757549473,500.0,0.00021999,60]
[338599653,1726757549763,375.59,0.00021999,60]
[338599654,1726757558996,500.0,0.00021999,60]
[338599655,1726757560028,556.56,0.00021999,60]
[338599656,1726757575317,500.0,0.00021999,60]
[338599657,1726757575378,365.97,0.00021999,60]
[338599658,1726757575914,500.0,0.00021999,60]
[338599659,1726757576173,500.0,0.00021999,60]
[338599660,1726757591146,500.0,0.00021999,60]
[338599661,1726757593170,500.0,0.00021999,60]
[338599662,1726757593462,479.54,0.00021999,60]
[338599663,1726757595595,500.0,0.00021999,60]
[338599664,1726757597217,506.13118977,0.00021999,60]
[338599665,1726757597705,500.0,0.00021999,60]
[338599668,1726757600595,500.0,0.00021999,60]
[338599669,1726757600847,348.23,0.00021999,60]
[338599670,1726757609857,383.12769975,0.00021999,60]
[338599671,1726757622402,500.0,0.00021999,60]
[338599672,1726757626881,500.47169361,0.00021999,60]
[338599673,1726757628276,500.0,0.00021999,60]
[338599674,1726757632770,500.0,0.00021999,60]
[338599675,1726757632945,500.0,0.00021999,60]
[338599676,1726757633036,404.92740248,0.00021999,60]
[338599677,1726757634850,250.0,0.00021999,60]
[338599678,1726757641878,500.0,0.00021999,60]
[338599679,1726757644654,500.0,0.00021999,60]
[338599680,1726757648545,500.0,0.00021999,60]
[338599681,1726757648821,157.5,0.00021999,60]
[338599682,1726757649131,500.0,0.00021999,60]
[338599683,1726757649440,500.0,0.00021999,60]
[338599685,1726757651092,500.0,0.00021999,60]
[338599686,1726757655174,500.0,0.00021999,60]
[338599687,1726757659703,500.0,0.00021999,60]
[338599688,1726757659973,500.0,0.00021999,60]
[338599689,1726757670191,500.0,0.00021999,60]
[338599690,1726757670838,500.0,0.00021999,60]
[338599691,1726757671555,523.41655012,0.00021999,60]
[338599692,1726757674661,500.0,0.00021999,60]
[338599693,1726757675617,500.0,0.00021999,60]
[338599694,1726757680416,565.35,0.00021999,60]
[338599695,1726757683605,500.0,0.00021999,60]
[338599696,1726757685922,500.0,0.00021999,60]
[338599697,1726757688061,500.0,0.00021999,60]
[338599698,1726757689671,630.74882953,0.00021999,60]
[338599699,1726757690552,500.0,0.00021999,60]
[338599700,1726757691581,500.0,0.00021999,60]
[338599701,1726757693011,632.08,0.00021999,60]
[338599702,1726757697439,500.0,0.00021999,60]
[338599703,1726757697737,500.0,0.00021999,60]
[338599704,1726757698188,500.0,0.00021999,60]
[338599705,1726757698480,382.82907401,0.00021999,60]
[338599706,1726757699182,193.00138264,0.00021999,60]
[338599707,1726757699710,500.0,0.00021999,60]
[338599708,1726757701651,500.0,0.00021999,60]
[338599709,1726757703110,581.75408113,0.00021999,60]
[338599710,1726757705470,500.0,0.00021999,60]
[338599711,1726757707786,500.0,0.00021999,60]
[338599712,1726757707842,500.0,0.00021999,60]
[338599713,1726757708107,500.0,0.00021999,60]
[338599714,1726757708408,273.15,0.00021999,60]
[338599715,1726757708539,500.0,0.00021999,60]
[338599716,1726757709992,500.0,0.00021999,60]
[338599717,1726757721215,500.0,0.00021999,60]
[338599718,1726757721478,500.0,0.00021999,60]
[338599719,1726757721743,164.78,0.00021999,60]
[338599720,1726757726482,500.0,0.00021999,60]
[338599721,1726757727525,500.0,0.00021999,60]
[338599722,1726757733278,500.0,0.00021999,60]
[338599723,1726757735528,500.0,0.00021999,60]
[338599724,1726757735759,602.3,0.00021999,60]
[338599725,1726757743240,500.29991761,0.00021999,60]
[338599726,1726757760557,518.39876319,0.00021999,60]
[338599727,1726757761881,500.0,0.00021999,60]
[338599728,1726757762175,438.77,0.00021999,60]
[338599729,1726757762684,500.0,0.00021999,60]
[338599730,1726757764757,500.0,0.00021999,60]
[338599731,1726757765019,500.0,0.00021999,60]
[338599732,1726757765449,192.43,0.00021999,60]
[338599733,1726757767571,500.0,0.00021999,60]
[338599734,1726757782261,500.0,0.00021999,60]
[338599735,1726757782568,500.0,0.00021999,60]
[338599736,1726757782820,158.39,0.00021999,60]
[338599737,1726757784101,500.47117748,0.00021999,60]
[338599738,1726757789469,154.32241024,0.00021999,60]
[338599739,1726757790888,500.0,0.00021999,60]
[338599740,1726757793384,500.0,0.00021999,60]
[338599741,1726757793675,500.0,0.00021999,60]
[338599742,1726757793779,500.61681258,0.00021999,60]
[338599743,1726757796228,500.0,0.00021999,60]
[338599744,1726757800493,500.0,0.00021999,60]
[338599745,1726757809040,500.0,0.00021999,60]
[338599746,1726757811058,501.11899791,0.00021999,60]
[338599747,1726757811354,500.0,0.00021999,60]
[338599750,1726757822670,500.0,0.00021999,60]
[338599751,1726757824695,500.0,0.00021999,60]
[338599752,1726757824967,500.0,0.00021999,60]
[338599753,1726757828735,500.0,0.00021999,60]
[338599754,1726757830660,500.0,0.00021999,60]
[338599755,1726757848883,500.62015098,0.00021999,60]
[338599756,1726757874547,500.0,0.00021999,60]
[338599757,1726757899515,500.0,0.00021999,60]
[338599758,1726757901689,500.0,0.00021999,60]
[338599759,1726757928859,500.0,0.00021999,60]
[338599760,1726757936753,500.0,0.00021999,60]
[338599761,1726757937029,388.76,0.00021999,60]
[338599762,1726757958971,500.0,0.00021999,60]
[338599763,1726757968484,500.0,0.00021999,60]
[338599764,1726757970290,500.0,0.00021999,60]
[338599766,1726758012988,500.0,0.00021999,60]
[338599768,1726758217822,500.0,0.00021999,60]
[338599769,1726758363712,500.0,0.00021999,60]
[338599770,1726758363979,500.0,0.00021999,60]
[338599771,1726758364262,168.28,0.00021999,60]
[338599854,1726758638356,-222.938625,0.00015061,2]
[338599856,1726758638367,-222.938625,0.00015102,2]
[338599858,1726758638378,-166.66666666,0.00015131,2]
[338599860,1726758638387,-222.938625,0.00015143,2]
[338599862,1726758638397,-222.938625,0.00015184,2]
[338599864,1726758638407,-222.938625,0.00015226,2]
[338599866,1726758638416,-300.0,0.00015231,2]
[338599868,1726758638426,-18170.33313318,0.00015232,2]
[338599870,1726758638438,-3813.47422903,0.00015232,2]
[338599873,1726758638450,-2916.19263779,0.00015232,2]
[338599874,1726758638459,-222.938625,0.00015267,2]
[338599877,1726758638469,-222.938625,0.00015308,2]
[338599879,1726758638479,-222.938625,0.0001535,2]
[338599880,1726758638488,-222.938625,0.00015391,2]
[338599882,1726758638497,-222.938625,0.00015432,2]
[338599884,1726758638507,-222.938625,0.00015474,2]
[338599886,1726758638517,-222.938625,0.00015515,2]
[338599888,1726758638527,-222.938625,0.00015556,2]
[338599890,1726758638536,-222.938625,0.00015598,2]
[338599892,1726758638546,-222.938625,0.00015639,2]
[338599894,1726758638555,-222.938625,0.0001568,2]
[338599896,1726758638565,-222.938625,0.00015722,2]
[338599898,1726758638575,-222.938625,0.00015763,2]
[338599900,1726758638584,-222.938625,0.00015804,2]
[338599902,1726758638593,-222.938625,0.00015845,2]
[338599904,1726758638603,-1000.0,0.00016,7]
[338599906,1726758638612,-1000.0,0.00016,2]
[338599908,1726758638623,-306.0,0.000161,2]
[338599910,1726758638632,-1000.0,0.0001625,2]
[338599912,1726758638642,-3742.46739704,0.0001626,2]
[338599991,1726758643542,-2914.47211925,0.0001626,2]
[338599992,1726758643551,-153.0,0.00016278,2]
[338599993,1726758643561,-718.00000015,0.000165,2]
[338599994,1726758643571,-166.66666666,0.00016653,2]
[338599995,1726758643580,-306.0,0.00016731,2]
[338599996,1726758643590,-561.14440173,0.00016745,2]
[338600006,1726758646345,-6576.89401354,0.00016745,2]
[338600007,1726758646355,-420.0,0.00016754,2]
[338600009,1726758646367,-203.41875347,0.0001687,2]
[338600010,1726758646378,-208.7923626,0.00016876,2]
[338600011,1726758646388,-208.7923626,0.00016876,2]
[338600014,1726758646398,-153.0,0.00016876,2]
[338600016,1726758646410,-208.7923626,0.00016876,2]
[338600018,1726758646420,-153.0,0.00016876,2]
[338600019,1726758646431,-153.0,0.00016876,2]
[338600020,1726758646442,-500.0,0.00016968,2]
[338600021,1726758646453,-500.0,0.00016968,2]
[338600022,1726758646463,-332.29116644,0.00016968,2]
[338600023,1726758646472,-500.0,0.00016969,2]
[338600024,1726758646481,-500.0,0.00016969,2]
[338600025,1726758646490,-218.08809526,0.00016969,2]
[338600026,1726758646499,-500.0,0.00016969,2]
[338600027,1726758646508,-199.00873675,0.00016969,2]
[338600028,1726758646520,-500.0,0.00016969,2]
[338600029,1726758646530,-500.0,0.00016969,2]
[338600030,1726758646539,-500.0,0.00016969,2]
[338600031,1726758646549,-456.1092862,0.00016969,2]
[338600032,1726758646558,-500.0,0.00016969,2]
[338600033,1726758646567,-500.0,0.00016969,2]
[338600034,1726758646577,-500.0,0.00016969,2]
[338600035,1726758646586,-500.0,0.00016969,2]
[338600036,1726758646596,-500.0,0.00016969,2]
[338600037,1726758646605,-500.0,0.00016969,2]
[338600038,1726758646615,-533.67414504,0.00016969,2]
[338600039,1726758646625,-500.0,0.00016969,2]
[338600040,1726758646636,-500.0,0.00016969,2]
[338600041,1726758646647,-500.0,0.00016969,2]
[338600042,1726758646657,-500.0,0.00016969,2]
[338600043,1726758646666,-500.0,0.00016969,2]
[338600044,1726758646676,-500.0,0.00016969,2]
[338600045,1726758646685,-500.0,0.00016969,2]
[338600046,1726758646696,-500.0,0.00016969,2]
[338600047,1726758646707,-500.0,0.00016969,2]
[338600048,1726758646717,-500.0,0.00016969,2]
[338600049,1726758646726,-420.0,0.00016969,2]
[338600050,1726758646736,-58880.08300025,0.00016969,5]
[338600051,1726758646746,-40784.37422386,0.00016969,5]
[338600052,1726758646756,-52501.8951393,0.00016969,2]
[338600053,1726758646766,-120440.47967,0.00016969,2]
[338600054,1726758646775,-48356.13455753,0.0001697,2]
[338600055,1726758646788,-72522.66112461,0.0001697,2]
[338600056,1726758646800,-263.63845362,0.0001697,2]
[338600057,1726758646815,-36363.25128224,0.0001697,2]
[338600058,1726758646824,-149902.8092824,0.0001697,2]
[338600059,1726758646836,-1757.91124783,0.0001697,2]
[338600063,1726758839301,500.0,0.00021999,60]
[338600064,1726758858508,500.0,0.00021999,60]
[338600066,1726758922346,528.40252368,0.00021999,60]
[338600068,1726758957446,564.32,0.00021999,60]
[338600069,1726758973794,500.0,0.00021999,60]
[338600070,1726758996033,500.0,0.00021999,60]
[338600071,1726758996305,378.69,0.00021999,60]
[338600072,1726759000403,500.0,0.00021999,60]
[338600073,1726759000984,500.0,0.00021999,60]
[338600074,1726759004766,626.92920704,0.00021999,60]
[338600075,1726759017442,500.0,0.00021999,60]
[338600076,1726759019224,534.15673478,0.00021999,60]
[338600077,1726759020594,500.0,0.00021999,60]
[338600078,1726759027329,500.0,0.00021999,60]
[338600079,1726759028764,500.0,0.00021999,60]
[338600082,1726759046841,500.0,0.00021999,60]
[338600083,1726759071086,500.0,0.00021999,60]
[338600084,1726759076826,500.0,0.00021999,60]
[338600085,1726759083842,500.0,0.00021999,60]
[338600086,1726759084848,500.0,0.00021999,60]
[338600087,1726759091653,500.0,0.00021999,60]
[338600088,1726759091933,500.0,0.00021999,60]
[338600089,1726759092191,500.0,0.00021999,60]
[338600090,1726759092847,500.0,0.00021999,60]
[338600091,1726759093176,413.04,0.00021999,60]
[338600093,1726759102398,500.0,0.00021999,60]
[338600094,1726759111446,500.0,0.00021999,60]
[338600095,1726759126286,591.6,0.00021999,60]
[338600096,1726759142301,500.0,0.00021999,60]
[338600097,1726759143584,500.0,0.00021999,60]
[338600098,1726759151797,500.0,0.00021999,60]
[338600099,1726759152064,500.0,0.00021999,60]
[338600100,1726759152324,193.96,0.00021999,60]
[338600101,1726759155224,500.0,0.00021999,60]
[338600102,1726759155347,500.0,0.00021999,60]
[338600103,1726759155674,500.0,0.00021999,60]
[338600104,1726759155979,500.0,0.00021999,60]
[338600105,1726759156245,500.0,0.00021999,60]
[338600106,1726759156536,398.4,0.00021999,60]
[338600107,1726759161785,500.0,0.00021999,60]
[338600108,1726759162050,500.0,0.00021999,60]
[338600109,1726759162291,641.22,0.00021999,60]
[338600110,1726759162338,384.93,0.00021999,60]
[338600111,1726759163272,500.0,0.00021999,60]
[338600112,1726759196891,500.0,0.00021999,60]
[338600114,1726759225024,500.0,0.00021999,60]
[338600115,1726759225298,196.55,0.00021999,60]
[338600116,1726759235231,500.0,0.00021999,60]
[338600117,1726759259583,546.62,0.00021999,60]
[338600118,1726759284842,500.0,0.00021999,60]
[338600119,1726759291825,500.0,0.00021999,60]
[338600120,1726759292133,389.97,0.00021999,60]
[338600121,1726759301658,500.0,0.00021999,60]
[338600122,1726759301911,500.0,0.00021999,60]
[338600123,1726759302188,500.0,0.00021999,60]
[338600124,1726759302464,500.0,0.00021999,60]
[338600125,1726759302739,500.0,0.00021999,60]
[338600126,1726759303069,500.0,0.00021999,60]
[338600127,1726759303296,500.0,0.00021999,60]
[338600128,1726759303559,500.0,0.00021999,60]
[338600129,1726759304035,500.0,0.00021999,60]
[338600130,1726759304295,500.0,0.00021999,60]
[338600131,1726759304602,500.0,0.00021999,60]
[338600132,1726759305223,500.0,0.00021999,60]
[338600133,1726759305500,500.0,0.00021999,60]
[338600134,1726759305802,500.0,0.00021999,60]
[338600135,1726759306105,500.0,0.00021999,60]
[338600136,1726759306401,500.0,0.00021999,60]
[338600137,1726759306685,500.0,0.00021999,60]
[338600159,1726759343564,500.0,0.00021999,60]
[338600160,1726759368458,570.78,0.00021999,60]
[338600163,1726759420290,500.0,0.00021999,60]
[338600164,1726759435867,500.0,0.00021999,60]
[338600165,1726759440797,500.0,0.00021999,60]
[338600166,1726759452925,500.0,0.00021999,60]
[338600167,1726759457043,500.0,0.00021999,60]
[338600168,1726759483079,500.0,0.00021999,60]
[338600169,1726759483348,204.55,0.00021999,60]
[338600170,1726759490622,500.0,0.00021999,60]
[338600171,1726759490893,328.33,0.00021999,60]
[338600172,1726759501713,500.0,0.00021999,60]
[338600173,1726759503730,531.2,0.00021999,60]
[338600174,1726759508053,500.0,0.00021999,60]
[338600175,1726759508830,500.0,0.00021999,60]
[338600177,1726759519190,2000.0,0.0001,2]
[338600186,1726759549579,500.0,0.00021999,60]
[338600188,1726759571732,500.0,0.00021999,60]
[338600191,1726759582681,500.0,0.00021999,60]
[338600192,1726759583018,500.0,0.00021999,60]
[338600193,1726759583244,500.0,0.00021999,60]
[338600194,1726759583537,150.02,0.00021999,60]
[338600195,1726759591592,500.0,0.00021999,60]
[338600197,1726759593115,-230.00119061,0.00014525,2]
[338600198,1726759595136,500.0,0.00021999,60]
[338600199,1726759595735,317.77,0.00021999,60]
[338600200,1726759611441,500.0,0.00021999,60]
[338600201,1726759639423,500.0,0.00021999,60]
[338600202,1726759639683,533.55,0.00021999,60]
[338600203,1726759639909,500.0,0.00021999,60]
[338600205,1726759648838,362.13980169,0.00021999,60]
[338600207,1726759654031,500.0,0.00021999,60]
[338600208,1726759654326,309.14,0.00021999,60]
[338600209,1726759657629,500.0,0.00021999,60]
[338600210,1726759678026,507.65,0.00021999,60]
[338600212,1726759685712,500.0,0.00021999,60]
[338600216,1726759695238,500.0,0.00021999,60]
[338600218,1726759704820,500.0,0.00021999,60]
[338600221,1726759722411,500.0,0.00021999,60]
[338600222,1726759733011,500.0,0.00021999,60]
[338600223,1726759741847,500.0,0.00021999,60]
[338600224,1726759747049,500.0,0.00021999,60]
[338600225,1726759749822,500.0,0.00021999,60]
[338600226,1726759750072,500.0,0.00021999,60]
[338600227,1726759750330,642.34,0.00021999,60]
[338600228,1726759750750,640.27,0.00021999,60]
[338600229,1726759761312,500.0,0.00021999,60]
[338600233,1726759765343,500.67401048,0.00021999,60]
[338600234,1726759768164,610.34,0.00021999,60]
[338600235,1726759770102,500.0,0.00021999,60]
[338600236,1726759771060,500.0,0.00021999,60]
[338600237,1726759778116,500.0,0.00021999,60]
[338600238,1726759779536,500.0,0.00021999,60]
[338600239,1726759785175,500.0,0.00021999,60]
[338600240,1726759785444,429.97,0.00021999,60]
[338600241,1726759792339,500.0,0.00021999,60]
[338600243,1726759796329,500.0,0.00021999,60]
[338600244,1726759802215,500.0,0.00021999,60]
[338600245,1726759802500,446.52,0.00021999,60]
[338600246,1726759802951,500.0,0.00021999,60]
[338600247,1726759814669,500.0,0.00021999,60]
[338600302,1726759832607,-300.0,0.00014525,2]
[338600304,1726759832617,-300.0,0.00014525,2]
[338600306,1726759832626,-11065.24403946,0.00014526,2]
[338600374,1726759838745,-13834.75596054,0.00014526,2]
[338600375,1726759838755,-1532.932711,0.00014526,2]
[338600376,1726759838764,-250.0000138,0.00014635,2]
[338600377,1726759838774,-150.0,0.00014932,2]
[338600378,1726759838783,-2631.2898499,0.00015073,2]
[338600379,1726759838793,-420.0,0.00015904,2]
[338600380,1726759838802,-376.684997,0.00015914,2]
[338600381,1726759838812,-376.684997,0.00015918,2]
[338600382,1726759838821,-376.684997,0.00015922,2]
[338600383,1726759838830,-376.684997,0.00015926,2]
[338600384,1726759838842,-376.684997,0.0001593,2]
[338600385,1726759838852,-376.684997,0.00015935,2]
[338600386,1726759838861,-376.684997,0.00015939,2]
[338600387,1726759838871,-376.684997,0.00015943,2]
[338600388,1726759838880,-376.684997,0.00015947,2]
[338600389,1726759838890,-376.684997,0.00015951,2]
[338600390,1726759838903,-376.684997,0.00015956,2]
[338600391,1726759838915,-376.684997,0.0001596,2]
[338600392,1726759838926,-376.684997,0.00015964,2]
[338600393,1726759838938,-376.684997,0.00015968,2]
[338600394,1726759838950,-376.684997,0.00015972,2]
[338600395,1726759838963,-376.684997,0.00015976,2]
[338600396,1726759838975,-420.0,0.00015977,2]
[338600397,1726759838985,-376.684997,0.00015981,2]
[338600398,1726759838994,-376.684997,0.00015985,2]
[338600399,1726759839004,-376.684997,0.00015989,2]
[338600400,1726759839015,-376.684997,0.00015993,2]
[338600401,1726759839027,-1144.0,0.00016,2]
[338600402,1726759839038,-5447.61294712,0.00016583,2]
[338600403,1726759839049,-2148.81871059,0.000167,2]
[338600404,1726759839060,-154.8132801,0.00016731,2]
[338600405,1726759839071,-153.0,0.00016731,2]
[338600406,1726759839082,-1000.0,0.0001684,2]
[338600407,1726759839093,-603.60064015,0.00016841,2]
[338600408,1726759839103,-603.60064013,0.00016846,2]
[338600409,1726759839114,-603.60064013,0.00016851,2]
[338600410,1726759839126,-603.60064013,0.00016856,2]
[338600411,1726759839138,-603.60064013,0.00016861,2]
[338600412,1726759839149,-150.0,0.000169,2]
[338600413,1726759839161,-150.112233,0.000169,2]
[338600414,1726759839173,-150.112233,0.000169,2]
[338600415,1726759839183,-226.208855,0.000169,2]
[338600416,1726759839195,-6267.37580964,0.000169,2]
[338600417,1726759839205,-500.0,0.0001693,2]
[338600418,1726759839216,-346.21749987,0.0001693,2]
[338600419,1726759839229,-500.0,0.0001693,2]
[338600420,1726759839241,-500.0,0.0001693,2]
[338600421,1726759839252,-3245.898791,0.0001693,2]
[338600422,1726759839265,-152.527214,0.0001693,2]
[338600423,1726759839277,-3245.898791,0.0001693,2]
[338600424,1726759839289,-29440.04150013,0.0001693,5]
[338600425,1726759839301,-84003.032223,0.00016931,2]
[338600426,1726759839312,-213670.839319,0.00016931,2]
[338600427,1726759839326,-1003.62688826,0.00016931,2]
[338600428,1726759839445,-147.99732374,0.00016931,2]
[338600429,1726759839456,-1151.624212,0.00016931,2]
[338600430,1726759839466,-151.0,0.00016931,2]
[338600431,1726759839477,-865.29575159,0.00016931,2]
[338600491,1726759843851,-25.55568785,0.00016931,2]
[338600527,1726759857054,500.0,0.00021999,60]
[338600528,1726759869046,298.62128832,0.00021999,60]
[338600535,1726759872820,500.0,0.00021999,60]
[338600538,1726759885321,500.0,0.00021999,60]
[338600539,1726759885634,621.77,0.00021999,60]
[338600541,1726759895459,500.0,0.00021999,60]
[338600547,1726759971073,500.0,0.00021999,60]
[338600550,1726760068042,500.0,0.00021999,60]
[338600551,1726760089160,500.0,0.00021999,60]
[338600552,1726760089839,500.0,0.00021999,60]
[338600553,1726760090038,154.99,0.00021999,60]
[338600559,1726760124563,500.0,0.00021999,60]
[338600570,1726760191497,183.5192588,0.000138,2]
[338600571,1726760198874,500.0,0.00021999,60]
[338600576,1726760217350,500.0,0.00022,120]
[338600578,1726760242871,500.0,0.00021999,60]
[338600579,1726760243210,500.0,0.00021999,60]
[338600580,1726760243483,500.0,0.00021999,60]
[338600581,1726760243762,458.32,0.00021999,60]
[338600584,1726760253816,461.0,0.00022,120]
[338600585,1726760294232,500.0,0.00021999,60]
[338600586,1726760294528,408.00177917,0.00021999,60]
[338600588,1726760306826,500.0,0.00022,120]
[338600589,1726760373763,500.0,0.00021999,60]
[338600590,1726760394158,510.72935629,0.00021999,60]
[338600597,1726760470982,500.0,0.00021999,60]
[338600598,1726760491323,500.0,0.00021999,60]
[338600599,1726760491612,500.0,0.00021999,60]
[338600601,1726760512774,22251.01222197,0.00022,60]
[338600602,1726760521228,500.0,0.00021999,60]
[338600603,1726760533590,500.0,0.00021999,60]
[338600604,1726760543301,180.00434868,0.00021999,60]
[338600605,1726760559086,618.3431383,0.00013699,2]
[338600606,1726760561365,24900.0,0.00013592,2]
[338600607,1726760585082,1418.034387,0.00013723,2]
[338600608,1726760618305,500.0,0.00021999,60]
[338600609,1726760629884,500.0,0.00021999,60]
[338600610,1726760630154,168.97,0.00021999,60]
[338600611,1726760637448,500.0,0.00021999,60]
[338600612,1726760637711,290.72,0.00021999,60]
[338600613,1726760647128,302.51,0.00022,60]
[338600615,1726760663617,302.0,0.00014013,2]
[338600616,1726760666530,500.0,0.00021999,60]
[338600617,1726760666859,500.0,0.00021999,60]
[338600618,1726760667148,500.0,0.00021999,60]
[338600619,1726760667428,500.0,0.00021999,60]
[338600620,1726760667716,500.0,0.00021999,60]
[338600621,1726760667985,500.0,0.00021999,60]
[338600622,1726760668256,500.0,0.00021999,60]
[338600623,1726760668663,475.93,0.00021999,60]
[338600624,1726760682256,500.0,0.00021999,60]
[338600626,1726760723544,500.0,0.00021999,60]
[338600627,1726760723827,517.87,0.00021999,60]
[338600628,1726760740714,596.19,0.00021999,60]
[338600629,1726760754628,500.0,0.00021999,60]
[338600630,1726760758334,632.07,0.00021999,60]
[338600631,1726760761471,500.0,0.00021999,60]
[338600632,1726760761746,411.58,0.00021999,60]
[338600633,1726760767437,500.0,0.00021999,60]
[338600634,1726760768424,500.0,0.00021999,60]
[338600635,1726760775104,500.0,0.00021999,60]
[338600637,1726760789990,500.0,0.00021999,60]
[338600639,1726760817573,500.0,0.00021999,60]
[338600640,1726760834290,500.0,0.00021999,60]
[338600641,1726760834587,589.03,0.00021999,60]
[338600642,1726760835137,-319.35667074,0.00014426,2]
[338600643,1726760835159,-319.35667068,0.0001445,2]
[338600644,1726760835181,-319.35667068,0.00014475,2]
[338600645,1726760835205,-319.35667068,0.00014499,2]
[338600646,1726760835226,-319.35667068,0.00014524,2]
[338600647,1726760835249,-250.0,0.00014526,2]
[338600648,1726760835272,-162.541042,0.00014526,2]
[338600649,1726760835292,-214.459574,0.00014526,2]
[338600650,1726760835314,-162.541042,0.00014533,2]
[338600651,1726760835335,-52.48372241,0.0001454,2]
[338600652,1726760835941,500.0,0.00021999,60]
[338600654,1726760850884,544.51130896,0.00021999,60]
[338600655,1726760860879,500.0,0.00021999,60]
[338600656,1726760868150,500.0,0.00021999,60]
[338600657,1726760888330,500.0,0.00021999,60]
[338600658,1726760897531,500.0,0.00021999,60]
[338600659,1726760897831,500.0,0.00021999,60]